fUST/lending_fUST_20240821
["ID","MTS","AMOUNT","RATE_DAILY","PERIOD"]
[335431430,1724226646414,-500.0,0.00034931,21]
[335431431,1724226646426,-1668.3,0.00034931,21]
[335431433,1724226646435,-500.0,0.00034931,21]
[335431435,1724226646444,-1668.3,0.00034931,21]
[335431437,1724226646453,-500.0,0.00034931,21]
[335431439,1724226646463,-1668.3,0.00034931,21]
[335431441,1724226646472,-502.11647915,0.00034931,21]
[335431444,1724226646482,-260.88374537,0.00034931,21]
[335431446,1724226646492,-500.0,0.00034931,21]
[335431448,1724226646501,-500.0,0.00034931,21]
[335431450,1724226646511,-500.0,0.00034931,21]
[335431452,1724226646520,-500.0,0.00034931,21]
[335431454,1724226646530,-500.0,0.00034931,21]
[335431456,1724226646539,-1668.3,0.00034931,21]
[335431458,1724226646547,-500.0,0.00034931,21]
[335431460,1724226646557,-500.0,0.00034931,21]
[335431462,1724226646569,-500.0,0.00034931,21]
[335431464,1724226646578,-505.744751,0.00034931,21]
[335431466,1724226646587,-500.0,0.00034931,21]
[335431468,1724226646597,-500.0,0.00034931,21]
[335431470,1724226646606,-500.0,0.00034931,21]
[335431472,1724226646615,-500.0,0.00034931,21]
[335431473,1724226646624,-500.0,0.00034931,21]
[335431475,1724226646634,-500.0,0.00034931,21]
[335431477,1724226646643,-500.0,0.00034931,21]
[335431479,1724226646653,-280.62243127,0.00034931,21]
[335431481,1724226646663,-500.0,0.00034931,21]
[335431482,1724226646673,-500.0,0.00034931,21]
[335431484,1724226646683,-500.0,0.00034931,21]
[335431486,1724226646692,-500.0,0.00034931,21]
[335431488,1724226646702,-1668.3,0.00034931,21]
[335431490,1724226646712,-500.0,0.00034931,21]
[335431492,1724226646721,-1668.3,0.00034931,21]
[335431494,1724226646731,-500.0,0.00034931,21]
[335431496,1724226646741,-1668.3,0.00034931,21]
[335431497,1724226646750,-500.0,0.00034931,21]
[335431499,1724226646760,-1668.3,0.00034931,21]
[335431501,1724226646770,-201.31457524,0.00034931,21]
[335431503,1724226646779,-1668.3,0.00034931,21]
[335431504,1724226646789,-500.0,0.00034931,21]
[335431506,1724226646798,-1668.3,0.00034931,21]
[335431507,1724226646807,-1668.3,0.00034931,21]
[335431508,1724226646816,-1668.3,0.00034931,21]
[335431509,1724226646826,-1668.3,0.00034931,21]
[335431510,1724226646835,-500.0,0.00034931,21]
[335431511,1724226646845,-1668.3,0.00034931,21]
[335431512,1724226646855,-500.0,0.00034931,21]
[335431514,1724226646864,-1668.3,0.00034931,21]
[335431516,1724226646873,-1668.3,0.00034931,21]
[335431518,1724226646884,-500.0,0.00034931,21]
[335431520,1724226646893,-1668.30985838,0.00034931,21]
[335431521,1724226646902,-500.0,0.00034931,21]
[335431522,1724226646911,-500.0,0.00034931,21]
[335431523,1724226646922,-500.0,0.00034931,21]
[335431524,1724226646932,-500.0,0.00034931,21]
[335431525,1724226646942,-500.0,0.00034931,21]
[335431526,1724226646952,-500.0,0.00034931,21]
[335431527,1724226646961,-500.0,0.00034931,21]
[335431528,1724226646970,-343.50102577,0.00034931,21]
[335431529,1724226646980,-500.0,0.00034931,21]
[335431530,1724226646989,-500.0,0.00034931,21]
[335431531,1724226646998,-500.0,0.00034931,21]
[335431532,1724226647008,-500.0,0.00034931,21]
[335431533,1724226647018,-500.0,0.00034931,21]
[335431534,1724226647028,-500.0,0.00034931,21]
[335431535,1724226647037,-500.0,0.00034931,21]
[335431536,1724226647046,-500.0,0.00034931,21]
[335431537,1724226647056,-501.97247459,0.00034931,21]
[335431538,1724226647065,-500.0,0.00034931,21]
[335431539,1724226647074,-500.0,0.00034931,21]
[335431540,1724226647083,-500.0,0.00034931,21]
[335431541,1724226647093,-500.0,0.00034931,21]
[335431542,1724226647102,-500.0,0.00034931,21]
[335431543,1724226647111,-500.0,0.00034931,21]
[335431544,1724226647120,-500.0,0.00034931,21]
[335431545,1724226647131,-500.0,0.00034931,21]
[335431546,1724226647140,-594.26,0.00034931,21]
[335431547,1724226647149,-500.0,0.00034931,21]
[335431548,1724226647159,-500.0,0.00034931,21]
[335431549,1724226647170,-594.26,0.00034931,21]
[335431550,1724226647179,-433.47710971,0.00034931,21]
[335431551,1724226647189,-500.0,0.00034931,21]
[335431552,1724226647199,-594.26,0.00034931,21]
[335431553,1724226647208,-500.0,0.00034931,21]
[335431554,1724226647218,-500.0,0.00034931,21]
[335431555,1724226647227,-594.26,0.00034931,21]
[335431556,1724226647236,-500.0,0.00034931,21]
[335431557,1724226647246,-500.0,0.00034931,21]
[335431558,1724226647256,-594.26,0.00034931,21]
[335431559,1724226647265,-500.0,0.00034931,21]
[335431560,1724226647275,-638.48931483,0.00034931,21]
[335431561,1724226647285,-500.0,0.00034931,21]
[335431562,1724226647295,-594.26,0.00034931,21]
[335431563,1724226647309,-500.0,0.00034931,21]
[335431564,1724226647319,-594.26,0.00034931,21]
[335431565,1724226647329,-500.0,0.00034931,21]
[335431566,1724226647340,-320.51731545,0.00034931,21]
[335431567,1724226647349,-594.26,0.00034931,21]
[335431568,1724226647359,-252.94080874,0.00034931,21]
[335431569,1724226647368,-500.0,0.00034931,21]
[335431570,1724226647378,-594.26,0.00034931,21]
[335431571,1724226647386,-372.4,0.00034931,21]
[335431572,1724226647396,-500.0,0.00034931,21]
[335431573,1724226647405,-594.26,0.00034931,21]
[335431574,1724226647414,-594.26,0.00034931,21]
[335431575,1724226647426,-500.0,0.00034931,21]
[335431576,1724226647435,-594.26,0.00034931,21]
[335431577,1724226647445,-594.26,0.00034931,21]
[335431578,1724226647454,-500.0,0.00034931,21]
[335431579,1724226647464,-594.26,0.00034931,21]
[335431580,1724226647473,-500.0,0.00034931,21]
[335431581,1724226647482,-500.0,0.00034931,21]
[335431582,1724226647491,-500.0,0.00034931,21]
[335431583,1724226647502,-500.0,0.00034931,21]
[335431584,1724226647511,-594.26,0.00034931,21]
[335431585,1724226647521,-500.0,0.00034931,21]
[335431586,1724226647530,-500.0,0.00034931,21]
[335431587,1724226647539,-594.26,0.00034931,21]
[335431588,1724226647548,-500.0,0.00034931,21]
[335431589,1724226647557,-500.0,0.00034931,21]
[335431590,1724226647566,-500.0,0.00034931,21]
[335431591,1724226647576,-500.0,0.00034931,21]
[335431592,1724226647585,-500.0,0.00034931,21]
[335431593,1724226647594,-594.26,0.00034931,21]
[335431594,1724226647604,-504.55177857,0.00034931,21]
[335431595,1724226647613,-500.0,0.00034931,21]
[335431596,1724226647622,-500.0,0.00034931,21]
[335431597,1724226647632,-594.26,0.00034931,21]
[335431598,1724226647641,-500.0,0.00034931,21]
[335431599,1724226647650,-500.0,0.00034931,21]
[335431600,1724226647660,-594.26,0.00034931,21]
[335431601,1724226647670,-500.0,0.00034931,21]
[335431602,1724226647679,-594.26,0.00034931,21]
[335431603,1724226647687,-500.0,0.00034931,21]
[335431604,1724226647696,-500.0,0.00034931,21]
[335431605,1724226647706,-594.26,0.00034931,21]
[335431606,1724226647715,-500.0,0.00034931,21]
[335431607,1724226647725,-500.0,0.00034931,21]
[335431608,1724226647734,-594.26,0.00034931,21]
[335431610,1724226647742,-425.52128362,0.00034931,21]
[335431612,1724226647752,-500.0,0.00034931,21]
[335431614,1724226647762,-500.0,0.00034931,21]
[335431615,1724226647771,-594.26,0.00034931,21]
[335431616,1724226647780,-500.0,0.00034931,21]
[335431617,1724226647789,-594.37206803,0.00034931,21]
[335431618,1724226647799,-500.0,0.00034931,21]
[335431619,1724226647808,-500.0,0.00034931,21]
[335431620,1724226647817,-500.0,0.00034931,21]
[335431621,1724226647828,-500.0,0.00034931,21]
[335431622,1724226647839,-502.14709887,0.00034931,21]
[335431623,1724226647850,-500.0,0.00034931,21]
[335431624,1724226647861,-500.0,0.00034931,21]
[335431625,1724226647870,-500.0,0.00034931,21]
[335431626,1724226647879,-500.0,0.00034931,21]
[335431628,1724226647889,-500.0,0.00034931,21]
[335431630,1724226647899,-500.0,0.00034931,21]
[335431632,1724226647909,-254.71601146,0.00034931,21]
[335431634,1724226647918,-500.0,0.00034931,21]
[335431636,1724226647929,-500.0,0.00034931,21]
[335431639,1724226647939,-500.0,0.00034931,21]
[335431641,1724226647950,-500.0,0.00034931,21]
[335431643,1724226647961,-500.0,0.00034931,21]
[335431644,1724226647970,-500.0,0.00034931,21]
[335431645,1724226647980,-500.0,0.00034931,21]
[335431646,1724226647989,-500.0,0.00034931,21]
[335431647,1724226647998,-500.0,0.00034931,21]
[335431648,1724226648008,-500.0,0.00034931,21]
[335431649,1724226648019,-500.0,0.00034931,21]
[335431650,1724226648029,-500.0,0.00034931,21]
[335431651,1724226648038,-500.0,0.00034931,21]
[335431652,1724226648048,-500.0,0.00034931,21]
[335431653,1724226648058,-500.0,0.00034931,21]
[335431654,1724226648067,-500.0,0.00034931,21]
[335431655,1724226648076,-500.0,0.00034931,21]
[335431656,1724226648086,-195.34674419,0.00034931,21]
[335431657,1724226648095,-500.0,0.00034931,21]
[335431658,1724226648104,-500.0,0.00034931,21]
[335431659,1724226648114,-500.0,0.00034931,21]
[335431660,1724226648123,-500.0,0.00034931,21]
[335431661,1724226648134,-505.4839967,0.00034931,21]
[335431662,1724226648144,-500.0,0.00034931,21]
[335431663,1724226648153,-500.0,0.00034931,21]
[335431664,1724226648163,-500.0,0.00034931,21]
[335431665,1724226648175,-500.0,0.00034931,21]
[335431666,1724226648290,-667.79,0.00034931,21]
[335431667,1724226648300,-500.0,0.00034931,21]
[335431668,1724226648314,-500.0,0.00034931,21]
[335431669,1724226648323,-500.0,0.00034931,21]
[335431670,1724226648333,-667.79,0.00034931,21]
[335431671,1724226648342,-500.0,0.00034931,21]
[335431672,1724226648353,-500.0,0.00034931,21]
[335431673,1724226648362,-667.79,0.00034931,21]
[335431674,1724226648372,-500.0,0.00034931,21]
[335431675,1724226648382,-500.0,0.00034931,21]
[335431676,1724226648393,-667.79,0.00034931,21]
[335431677,1724226648402,-667.79,0.00034931,21]
[335431678,1724226648412,-500.0,0.00034931,21]
[335431679,1724226648422,-500.0,0.00034931,21]
[335431680,1724226648431,-667.79,0.00034931,21]
[335431681,1724226648440,-500.0,0.00034931,21]
[335431682,1724226648450,-667.79,0.00034931,21]
[335431683,1724226648459,-500.0,0.00034931,21]
[335431684,1724226648468,-667.79,0.00034931,21]
[335431685,1724226648479,-500.0,0.00034931,21]
[335431686,1724226648488,-501.64906622,0.00034931,21]
[335431687,1724226648497,-3118.74,0.00034931,21]
[335431688,1724226648506,-667.79,0.00034931,21]
[335431689,1724226648516,-500.0,0.00034931,21]
[335431690,1724226648526,-3118.74,0.00034931,21]
[335431691,1724226648535,-667.79,0.00034931,21]
[335431692,1724226648545,-3118.74,0.00034931,21]
[335431693,1724226648555,-241.46390257,0.00034931,21]
[335431694,1724226648564,-667.79,0.00034931,21]
[335431695,1724226648574,-500.0,0.00034931,21]
[335431696,1724226648583,-3118.74,0.00034931,21]
[335431697,1724226648593,-667.79,0.00034931,21]
[335431698,1724226648602,-500.0,0.00034931,21]
[335431699,1724226648612,-3118.74,0.00034931,21]
[335431700,1724226648621,-667.79,0.00034931,21]
[335431701,1724226648632,-350.6,0.00034931,21]
[335431702,1724226648642,-3118.74,0.00034931,21]
[335431703,1724226648652,-667.79,0.00034931,21]
[335431704,1724226648661,-3118.74,0.00034931,21]
[335431705,1724226648673,-667.79,0.00034931,21]
[335431706,1724226648682,-500.0,0.00034931,21]
[335431707,1724226648692,-667.79,0.00034931,21]
[335431708,1724226648702,-521.53329865,0.00034931,21]
[335431709,1724226648711,-667.79,0.00034931,21]
[335431710,1724226648721,-3118.74,0.00034931,21]
[335431711,1724226648731,-667.79,0.00034931,21]
[335431712,1724226648740,-3118.74,0.00034931,21]
[335431713,1724226648750,-667.79,0.00034931,21]
[335431714,1724226648760,-3118.74,0.00034931,21]
[335431715,1724226648770,-667.79,0.00034931,21]
[335431716,1724226648780,-3118.74,0.00034931,21]
[335431717,1724226648790,-667.79,0.00034931,21]
[335431718,1724226648800,-3118.74,0.00034931,21]
[335431719,1724226648809,-667.79,0.00034931,21]
[335431720,1724226648819,-3118.74,0.00034931,21]
[335431721,1724226648829,-667.79,0.00034931,21]
[335431722,1724226648838,-3118.74,0.00034931,21]
[335431723,1724226648848,-579.44760009,0.00034931,21]
[335431724,1724226649156,-238.23,0.00010959,2]
[335431725,1724226649165,-151.0,0.0002722,7]
[335431726,1724226649177,-17951.03648299,0.00027944,3]
[335431727,1724226649189,-21778.64351701,0.00027944,3]
[335431728,1724226649198,-151.0,0.00034724,7]
[335431729,1724226649208,-158.691,0.00034737,2]
[335431730,1724226649218,-1785.95416888,0.00034931,21]
[335431731,1724226649429,-367.0621482,0.00011409,2]
[335431732,1724226696522,-375.39357156,0.00010328,2]
[335431733,1724226696544,-7014.77930494,0.00010328,2]
[335431734,1724226696567,-6977.22483773,0.00010328,2]
[335431735,1724226696590,-8845.97303828,0.00010328,2]
[335431736,1724226696612,-494.01100072,0.00010328,2]
[335431737,1724226696633,-1298.16308263,0.00010328,2]
[335431738,1724226696656,-157.03136559,0.00010328,2]
[335431739,1724226696678,-411.69064325,0.00010328,2]
[335431740,1724226696700,-1672.17781827,0.00010328,2]
[335431741,1724226696722,-301.5399063,0.00010328,2]
[335431742,1724226696744,-991.38842768,0.00010328,2]
[335431743,1724226696767,-2713.12344355,0.00010328,2]
[335431744,1724226696790,-362.85492166,0.00010328,2]
[335431745,1724226696813,-1065.0813356,0.00010328,2]
[335431746,1724226696836,-43755.48626989,0.00010328,2]
[335431747,1724226696859,-2282.92421799,0.00010328,3]
[335431748,1724226696882,-898.92251749,0.00010328,2]
[335431749,1724226696903,-1435.41156726,0.00010328,2]
[335431750,1724226696925,-345.94502061,0.00010328,2]
[335431751,1724226696948,-1362.93248849,0.00010328,2]
[335431752,1724226696969,-154.76012181,0.00010328,2]
[335431753,1724226696991,-1893.57245662,0.00010328,2]
[335431754,1724226697013,-42419.73400821,0.00010957,2]
[335431755,1724226697035,-300.0,0.00011408,2]
[335431756,1724226697058,-300.0,0.00011408,2]
[335431757,1724226697080,-20799.06185203,0.00011987,2]
[335431758,1724226697859,1754.82103027,8.521e-05,2]
[335431759,1724226706035,158.63197654,0.00010328,2]
[335431760,1724226709575,4350.36377503,0.00011987,2]
[335431834,1724227832431,-1004.25000015,8.761e-05,2]
[335431886,1724227838593,-1138.97745292,8.761e-05,2]
[335431888,1724227838603,-277.282325,9.014e-05,2]
[335431890,1724227838613,-4326.26764659,9.839e-05,2]
[335431892,1724227838623,-160.70221646,9.939e-05,2]
[335431893,1724227838633,-300.0,9.987e-05,2]
[335431894,1724227838643,-241.0,9.987e-05,2]
[335431895,1724227838653,-21698.2329533,9.988e-05,2]
[335431896,1724227838665,-3201.7670467,9.988e-05,2]
[335431897,1724227838675,-20799.06185203,0.00010081,2]
[335431898,1724227838684,-166.52139,0.0001033,2]
[335431899,1724227838694,-1899.941342,0.000105,2]
[335431900,1724227838703,-166.52139,0.0001051,2]
[335431901,1724227838713,-665.59514245,0.00010544,2]
[335431902,1724227838722,-166.52139,0.00010689,2]
[335431903,1724227838732,-166.52139,0.00010869,2]
[335431904,1724227838742,-404.50920595,0.00010958,2]
[335431905,1724227838751,-404.50920595,0.00010958,2]
[335431906,1724227838761,-290.11,0.00010959,2]
[335431907,1724227838770,-241.76,0.00010959,2]
[335431908,1724227838780,-241.76,0.00010959,2]
[335431909,1724227838789,-161.17,0.00010959,2]
[335431910,1724227838798,-805.88,0.00010959,2]
[335431911,1724227838808,-420.0,0.00010986,2]
[335431912,1724227838817,-4000.0,0.00011,2]
[335431913,1724227838826,-155.0610391,0.00011712,2]
[335431914,1724227838838,-156.64490896,0.00011742,2]
[335431915,1724227838847,-22775.58966832,0.00011842,2]
[335431916,1724227838857,-218.08775075,0.00011987,2]
[335431917,1724227838867,-656.64881168,0.00011987,2]
[335431918,1724227838880,-3332.19467507,0.00011987,2]
[335431919,1724227838889,-217.18352706,0.00011987,2]
[335431920,1724227838899,-154.79103211,0.00011999,2]
[335431921,1724227838908,-8845.97303828,0.00011999,2]
[335431922,1724227838919,-154.79103211,0.00011999,2]
[335431923,1724227838929,-8845.97303828,0.00011999,2]
[335431924,1724227838939,-151.0,0.00012,2]
[335431925,1724227838949,-587.0,0.00012084,2]
[335431926,1724227838959,-3092.99892406,0.00012163,2]
[335431927,1724227838968,-52665.7471597,0.00012346,2]
[335431928,1724227838978,-2282.92421799,0.00012356,3]
[335431929,1724227838987,-7014.77930494,0.00012356,2]
[335431930,1724227838997,-4309.48737374,0.00012452,2]
[335431931,1724227839006,-2713.12344355,0.00012516,2]
[335431932,1724227839016,-52665.7471597,0.00012542,2]
[335431933,1724227839025,-903.99017576,0.00012629,2]
[335431934,1724227839035,-601.94985179,0.00012782,2]
[335431935,1724227839045,-444.944382,0.00012782,2]
[335431936,1724227839055,-241.72629942,0.00012886,2]
[335431937,1724227839065,-518.78941148,0.00012886,2]
[335431938,1724227839075,-413.74889628,0.00012898,2]
[335431939,1724227839087,-309.27320796,0.00012898,2]
[335431940,1724227839097,-5750.05465088,0.000129,2]
[335431941,1724227839107,-493.31113268,0.0001295,2]
[335431942,1724227839116,-756.42688658,0.00013,2]
[335431943,1724227839126,-301.59897552,0.00013596,2]
[335431944,1724227839136,-154.81475424,0.00013597,2]
[335431945,1724227839146,-155.6425237,0.00013597,2]
[335431946,1724227839155,-517.82823225,0.00013698,2]
[335431947,1724227839165,-500.0,0.00013698,2]
[335431948,1724227839175,-163.1541171,0.00013698,2]
[335431949,1724227839185,-500.0,0.00013698,2]
[335431950,1724227839195,-500.0,0.00013698,2]
[335431951,1724227839205,-175.39160486,0.00013698,2]
[335431952,1724227839215,-500.0,0.00013698,2]
[335431953,1724227839224,-500.0,0.00013698,2]
[335431954,1724227839234,-500.0,0.00013698,2]
[335431955,1724227839243,-500.0,0.00013698,2]
[335431956,1724227839252,-500.0,0.00013698,2]
[335431957,1724227839262,-500.0,0.00013698,2]
[335431958,1724227839272,-500.0,0.00013698,2]
[335431959,1724227839281,-500.0,0.00013698,2]
[335431960,1724227839291,-500.0,0.00013698,2]
[335431961,1724227839300,-500.0,0.00013698,2]
[335431962,1724227839310,-500.0,0.00013698,2]
[335431963,1724227839319,-500.0,0.00013698,2]
[335431964,1724227839330,-500.0,0.00013698,2]
[335431965,1724227839339,-550.0,0.00013698,2]
[335431966,1724227839348,-1041.06171514,0.00013698,2]
[335431967,1724227839357,-2591.7885165,0.00013699,2]
[335431968,1724227839366,-192.198215,0.00013699,2]
[335431969,1724227839375,-500.0,0.00013699,2]
[335431970,1724227839385,-500.0,0.00013699,2]
[335431971,1724227839394,-234.40287602,0.00013699,2]
[335431972,1724227839403,-500.0,0.00013699,2]
[335431973,1724227839413,-500.0,0.00013699,2]
[335431974,1724227839422,-500.0,0.00013699,2]
[335431975,1724227839432,-500.0,0.00013699,2]
[335431976,1724227839441,-506.62579798,0.00013699,2]
[335431977,1724227839450,-500.0,0.00013699,2]
[335431978,1724227839460,-616.07086686,0.00013699,2]
[335431979,1724227839470,-500.0,0.00013699,2]
[335431980,1724227839480,-52665.7471597,0.00013744,2]
[335431981,1724227839490,-5750.05465081,0.00013754,2]
[335431982,1724227839500,-817.69256856,0.00013971,2]
[335431983,1724227839510,-154.76012181,0.00014,2]
[335431984,1724227839520,-780.13119624,0.00014245,2]
[335431985,1724227839529,-342.54706255,0.00014245,2]
[335431986,1724227839539,-1500.0,0.00014245,2]
[335431987,1724227839549,-194.85160042,0.00014245,2]
[335431988,1724227839558,-521.35824671,0.00014245,2]
[335431989,1724227839568,-320.30409158,0.00014245,2]
[335431990,1724227839578,-374.67514,0.00014247,2]
[335431991,1724227839590,-202.516822,0.00014247,2]
[335431992,1724227839599,-194.85160042,0.00014519,2]
[335431993,1724227839609,-569.6147727,0.00014519,2]
[335431994,1724227839618,-810.8243326,0.00014519,2]
[335431995,1724227839628,-154.79103211,0.00014519,2]
[335431996,1724227839638,-55483.88635971,0.00014529,2]
[335431997,1724227839647,-202.2562543,0.00014529,2]
[335431998,1724227839657,-308.9490922,0.00014529,2]
[335431999,1724227839669,-953.53947811,0.00015,2]
[335432000,1724227839678,-1111.18149522,0.00015,2]
[335432001,1724227839688,-1999.99999974,0.00015,2]
[335432002,1724227839697,-500.0,0.00016467,2]
[335432003,1724227839707,-277.68803325,0.000165,2]
[335432004,1724227839716,-576.01378222,0.00017015,2]
[335432005,1724227839726,-5750.05465081,0.00017279,2]
[335432006,1724227839736,-4309.48737374,0.00017814,2]
[335432007,1724227839746,-10000.0,0.00019178,7]
[335432008,1724227839756,-166.751608,0.00019178,2]
[335432009,1724227839766,-251.0,0.00019178,2]
[335432010,1724227839776,-500.0,0.00019574,2]
[335432011,1724227839786,-500.0,0.00019947,2]
[335432012,1724227839796,-97238.11421669,0.0001999,2]
[335432013,1724227840242,-8093.38010231,0.0001999,2]
[335432014,1724227840252,-223.33384908,0.0002,2]
[335432015,1724227840262,-156.66298998,0.0002,2]
[335432016,1724227840271,-1260.81854444,0.0002,2]
[335432017,1724227840280,-287.17173053,0.0002,2]
[335432018,1724227840290,-10033.87388286,0.0002,2]
[335432072,1724227843685,-55483.88635971,0.00013971,2]
[335432073,1724227843696,-123.70056418,0.0002,2]
[335432074,1724227843705,-226.13158555,0.0002,2]
[335432075,1724227843715,-86156.24887909,0.0002,2]
[335432076,1724227843724,-400.42,0.0002,2]
[335432077,1724227843734,-200.64,0.0002,2]
[335432078,1724227843743,-2391.26,0.0002,2]
[335432079,1724227843753,-43619.18,0.0002,2]
[335432080,1724227843763,-192.198215,0.00020548,2]
[335432081,1724227843772,-374.67514,0.00020707,2]
[335432082,1724227843781,-5750.05465081,0.00020803,2]
[335432083,1724227843790,-500.0,0.00020808,2]
[335432084,1724227843800,-500.0,0.00020826,2]
[335432085,1724227843809,-500.0,0.00021368,2]
[335432086,1724227843819,-561.31651876,0.000226,2]
[335432087,1724227843830,-500.0,0.00022757,2]
[335432088,1724227843840,-4309.48737374,0.00023176,2]
[335432089,1724227843851,-10343.5134042,0.0002423,2]
[335432090,1724227843861,-52665.7471597,0.0002425,3]
[335432091,1724227843871,-500.0,0.00024284,2]
[335432092,1724227843885,-5750.05465081,0.00024327,2]
[335432093,1724227843895,-782.718708,0.00024465,2]
[335432094,1724227843905,-500.0,0.00024554,2]
[335432095,1724227843914,-173.0,0.00025,2]
[335432096,1724227843925,-173.0,0.0002589,2]
[335432097,1724227843935,-401.4765779,0.00026233,2]
[335432098,1724227843945,-154.72,0.000266,31]
[335432099,1724227843955,-154.72,0.000266,31]
[335432100,1724227843964,-154.72,0.000266,31]
[335432101,1724227843974,-154.72,0.000266,31]
[335432102,1724227843984,-400.42,0.000269,14]
[335432103,1724227843993,-2391.26,0.000269,14]
[335432104,1724227844003,-43619.18,0.000269,14]
[335432105,1724227844012,-3000.0,0.000271,2]
[335432106,1724227844022,-200.64,0.000271,7]
[335432107,1724227844031,-4333.155234,0.0002711,2]
[335432108,1724227844040,-374.67514,0.00027167,2]
[335432109,1724227844050,-500.0,0.00027576,2]
[335432110,1724227844059,-5750.05465081,0.00027851,2]
[335432111,1724227844068,-150.112234,0.000283,10]
[335432112,1724227844078,-500.0,0.00028442,2]
[335432113,1724227844096,-4309.48737374,0.00028538,2]
[335432114,1724227844106,-154.72,0.000286,31]
[335432115,1724227844115,-154.72,0.000286,31]
[335432116,1724227844124,-154.72,0.000286,31]
[335432117,1724227844143,-154.72,0.000286,31]
[335432118,1724227844155,-154.72,0.000286,31]
[335432119,1724227844165,-154.72,0.000286,31]
[335432120,1724227844175,-154.72,0.000286,31]
[335432121,1724227844185,-154.72,0.000286,31]
[335432122,1724227844196,-500.0,0.00028841,2]
[335432123,1724227844206,-153.0,0.0002925,2]
[335432124,1724227844216,-153.0,0.0002925,2]
[335432125,1724227844226,-153.0,0.0002925,2]
[335432126,1724227844236,-153.0,0.0002925,2]
[335432127,1724227844247,-153.0,0.0002925,2]
[335432128,1724227844259,-153.0,0.0002925,2]
[335432129,1724227844269,-153.0,0.0002925,2]
[335432130,1724227844278,-153.0,0.0002925,2]
[335432131,1724227844288,-153.0,0.0002925,2]
[335432132,1724227844298,-153.0,0.0002925,2]
[335432134,1724227844307,-153.0,0.0002925,2]
[335432135,1724227844317,-153.0,0.0002925,2]
[335432137,1724227844328,-153.0,0.0002925,2]
[335432138,1724227844340,-153.0,0.0002925,2]
[335432139,1724227844350,-153.0,0.0002925,2]
[335432140,1724227844359,-153.0,0.0002925,2]
[335432141,1724227844369,-153.0,0.0002925,2]
[335432142,1724227844379,-178.72751622,0.0003,5]
[335432143,1724227844389,-285.3614456,0.0003,3]
[335432144,1724227844399,-57570.14793085,0.0003,2]
[335432145,1724227844409,-274.0,0.0003,2]
[335432146,1724227844420,-151.0,0.0003,120]
[335432147,1724227844432,-639.0,0.0003,120]
[335432148,1724227844442,-150.112233,0.000304,8]
[335432149,1724227844452,-159.43662435,0.00030666,7]
[335432150,1724227844462,-154.72,0.000307,31]
[335432151,1724227844471,-154.72,0.000307,31]
[335432152,1724227844481,-154.72,0.000307,31]
[335432153,1724227844491,-154.72,0.000307,31]
[335432154,1724227844501,-154.72,0.000307,31]
[335432155,1724227844511,-154.72,0.000307,31]
[335432156,1724227844521,-154.72,0.000307,31]
[335432157,1724227844531,-154.72,0.000307,31]
[335432158,1724227844540,-500.0,0.00030871,7]
[335432159,1724227844550,-400.42,0.00031,14]
[335432160,1724227844560,-200.64,0.00031,7]
[335432161,1724227844569,-2391.26,0.00031,14]
[335432162,1724227844579,-43619.18,0.00031,14]
[335432163,1724227844594,-5750.05465081,0.00031376,2]